Cogmind - Beta 13 @@@ ROGUE MODE // 2024.06.09 @ 22:32:37 Player: Trantor Result: Self-destructed Performance ------------- Evolutions (6) 3000 Regions Visited (13) 2600 Robots Destroyed (36) 180 Value Destroyed (1385) 1385 Prototype IDs (40) 800 Alien Tech Used (0) 0 Bonus (942) 942 TOTAL SCORE: 8907 Bonus ------- High Alert Combat Kills 35 Follower Combat Kills 441 Aligned with FarCom 300 Met Data Miner 300 Friendly Fire -134 Cogmind --------- Core Integrity 984/1150 Matter 246/300 Energy 310/310 System Corruption 1% Temperature Cool (0) Movement Rolling (150) Ox4 Location -4/Factory Parts ------- > --- POWER (2) -------- Fission Core > --- PROPULSION (7) --- Armored Wheel > --- UTILITY (7) ------ Improved Heat Sink Large Storage Unit Structural Scanner Experimental Targeting Computer Improved Transmission Jammer Hacking Suite Dynamic Insulation System > --- WEAPON (3) ------- Heavy Phase Cannon KE Penetrator Heavy Flail > --- INVENTORY (15) --- Micro Fission Core Improved Particle Charger Advanced ECM Suite Hardened Medium Armor Plating Improved Focal Shield Improved Thermal Shield Improved System Shield Phase Gun Heavy Phase Cannon Antimatter Cannon Proton Missile Launcher Improved Remote Datajack Peak State ------------ > --- POWER ------------ Light Angular Momentum Engine Fission Core > --- PROPULSION ------- Armored Wheel Armored Wheel Armored Wheel Armored Wheel Armored Huge Wheel > --- UTILITY ---------- Large Storage Unit Structural Scanner Experimental Targeting Computer Improved Transmission Jammer Improved Medium Armor Plating Hacking Suite Dynamic Insulation System > --- WEAPON ----------- Phase Gun Heavy Phase Cannon Heavy Flail > --- INVENTORY -------- Armored Wheel Armored Wheel Improved Particle Charger Advanced ECM Suite Hardened Medium Armor Plating Reactive Plating Improved Focal Shield Improved Thermal Shield Improved System Shield Heavy Phase Cannon KE Penetrator Antimatter Cannon Proton Missile Launcher Concussive RPG Advanced Concussive RPG [Rating: 73] Favorites ----------- Power Light Angular Momentum Engine Engine Light Angular Momentum Engine Power Core Fission Core Propulsion Armored Wheel Treads Light Treads Leg Aluminum Leg Wheel Armored Wheel Utility Large Storage Unit Device Structural Scanner Storage Large Storage Unit Processor Experimental Targeting Computer Hackware Hacking Suite Protection Reactive Plating Weapon Heavy Phase Cannon Energy Gun Phase Gun Energy Cannon Heavy Phase Cannon Ballistic Gun Assault Rifle Ballistic Cannon Advanced Assault Cannon Launcher Improved Grenade Launcher Special Weapon Mining Laser Impact Weapon Heavy Flail Build | -11 -10 -10 -10 -9 -8 -7 -6 -6 -6 -5 -5 -5 -4 ------- Run | Yrd Mat Min Exi Min Mat Fac Fac Low Dat Pro Fac Ext Fac Slots Evolved 12 | . . . . . 4 2 2 . . . 2 . 2 Power 1 | . . . . . . . . . . . 1 . . Propulsion 5 | . . . . . 2 1 1 . . . . . 1 Utility 5 | . . . . . 2 1 1 . . . . . 1 Weapon 1 | . . . . . . . . . . . 1 . . Parts Attached 76 | 2 5 . . 3 9 10 12 4 . . 11 4 16 Power 7 | . . . . 1 . 1 . 1 . . 2 . 2 Engine 5 | . . . . 1 . 1 . 1 . . 2 . . Core 2 | . . . . . . . . . . . . . 2 Reactor . | . . . . . . . . . . . . . . Propulsion 13 | 2 2 . . . 2 3 1 1 . . . . 2 Treads 2 | 2 . . . . . . . . . . . . . Leg . | . . . . . . . . . . . . . . Wheel 11 | . 2 . . . 2 3 1 1 . . . . 2 Hover . | . . . . . . . . . . . . . . Flight . | . . . . . . . . . . . . . . Utility 26 | . 3 . . . 3 3 8 2 . . 2 1 4 Device 15 | . 1 . . . 1 1 5 2 . . 2 . 3 Storage 2 | . 2 . . . . . . . . . . . . Processor 3 | . . . . . 1 1 1 . . . . . . Hackware 1 | . . . . . . . . . . . . . 1 Protection 5 | . . . . . 1 1 2 . . . . 1 . Artifact . | . . . . . . . . . . . . . . Weapon 30 | . . . . 2 4 3 3 . . . 7 3 8 Energy Gun 3 | . . . . . 1 . . . . . 1 . 1 Energy Cannon 7 | . . . . . . 1 1 . . . 2 2 1 Ballistic Gun 3 | . . . . 1 1 . . . . . . . 1 Ballistic Cannon 5 | . . . . . . 1 2 . . . 1 . 1 Launcher 6 | . . . . . 1 . . . . . 2 1 2 Special Weapon 1 | . . . . 1 . . . . . . . . . Impact Weapon 5 | . . . . . 1 1 . . . . 1 . 2 Slashing Weapon . | . . . . . . . . . . . . . . Piercing Weapon . | . . . . . . . . . . . . . . Special Melee Weapon . | . . . . . . . . . . . . . . Unidentified Prototypes 4 | . . . . . 1 . 3 . . . . . . Parts Lost 11 | . . . . . . . 1 . . . . 2 8 Power 3 | . . . . . . . . . . . . 1 2 Propulsion 5 | . . . . . . . . . . . . . 5 Utility 3 | . . . . . . . 1 . . . . 1 1 Weapon . | . . . . . . . . . . . . . . Highest Loss Streak 5 | . . . . . . . 1 . . . . 2 5 To Critical Strikes . | . . . . . . . . . . . . . . Average Slot Usage (%) 95 | . 99 100 100 100 100 100 99 95 93 93 92 89 84 Engine 8 | . 14 14 14 14 9 7 6 6 6 6 9 6 2 Wheel 30 | . 13 28 28 28 36 38 40 35 33 33 29 29 24 Device 11 | . 14 14 14 14 12 7 6 6 6 6 14 13 16 Storage 8 | . 14 14 14 14 9 7 6 6 6 6 5 5 5 Processor 6 | . . . . . 9 15 12 13 13 13 6 5 5 Protection 5 | . . . . . 5 7 13 13 13 13 6 8 3 Energy Cannon 3 | . . . . . . 5 3 . . . 4 11 5 Ballistic Gun 7 | . 28 28 28 20 9 . . . . . . . . Ballistic Cannon 3 | . . . . . . 3 5 13 13 13 7 1 . Special Weapon 1 | . . . . 7 2 . . . . . . . . Impact Weapon 1 | . . . . . . 5 2 . . . . . 3 Naked Turns . | . . . . . . . . . . . . . . Heaviest Build 82 | 11 27 27 27 31 43 49 65 63 63 63 82 82 82 Greatest Support 76 | 40 40 24 24 24 48 60 72 76 76 76 76 76 76 Greatest Overweight (x) 2 | . 2 1 1 1 . . . . . . 1 1 2 Average Overweight (x) . | . . 1 1 1 . . . . . . . . . Largest Inventory Capacity 15 | 8 15 15 15 15 15 15 15 15 15 15 15 15 15 Average Capacity 14 | 8 13 15 15 15 15 15 15 15 15 15 15 15 15 Most Carried 15 | 7 15 15 15 15 15 15 15 15 15 15 15 15 15 Average Carried 14 | 6 10 15 14 14 14 14 14 14 15 15 14 14 14 Final Capacity 15 | 8 15 15 15 15 15 15 15 15 15 15 15 15 15 Final Carried 15 | 6 15 15 15 15 15 15 15 15 15 15 15 15 12 Class Distribution -------------------- 43% | Mutant 15% | Skirmisher 14% | Infiltrator-Tank 11% | Assassin 8% | Infiltrator-Mutant 5% | Commander-Tank Dominant Class ---------------- Mutant | -10/Materials Mutant | -10/Mines Mutant | -10/Exiles Mutant | -9/Mines Skirmisher | -8/Materials Assassin | -7/Factory Skirmisher | -6/Factory Mutant | -6/Lower Caves Mutant | -6/Data Miner Mutant | -5/Proximity Caves Infiltrator-Tank | -5/Factory Commander-Tank | -5/Extension Infiltrator-Mutant | -4/Factory Resources | -11 -10 -10 -10 -9 -8 -7 -6 -6 -6 -5 -5 -5 -4 ----------- Run | Yrd Mat Min Exi Min Mat Fac Fac Low Dat Pro Fac Ext Fac Matter Collected 1545 | 200 142 . . 92 99 86 304 98 . 20 46 318 140 Remotely . | . . . . . . . . . . . . . . Salvage Created 1398 | . 168 . . 96 128 38 38 . . . 40 568 322 Parts 62 | . 9 . . 5 5 3 . . . . 1 18 21 Haulers Intercepted 4 | . . . . . 1 . . . . . . 3 . Recyclers Shooed 1 | . . . . . . . . . . . . 1 . Parts Field Recycled . | . . . . . . . . . . . . . . Retrieved Matter . | . . . . . . . . . . . . . . Parts Self-Destructed 6 | . . . . . . . . 5 . 1 . . . Prevented 1 | . . . . . . . . . . 1 . . . Kills | -11 -10 -10 -10 -9 -8 -7 -6 -6 -6 -5 -5 -5 -4 ------- Run | Yrd Mat Min Exi Min Mat Fac Fac Low Dat Pro Fac Ext Fac Combat Hostiles Destroyed 29 | . 4 . . 5 2 1 2 . . . 1 4 10 Guns 15 | . 4 . . 5 2 . . . . . . . 4 Cannons 8 | . . . . . . 1 2 . . . 1 1 3 AOE 5 | . . . . . . . . . . . . 2 3 Classes Destroyed 8 | . 1 . . 1 2 1 1 . . . . 2 . Builder 1 | . . . . . . . . . . . . 1 . Hauler 4 | . . . . . 1 . . . . . . 3 . Operator 1 | . . . . . 1 . . . . . . . . Watcher 1 | . . . . . . . . . . . . 1 . Swarmer 11 | . . . . 4 . . . . . . . . 7 Grunt 9 | . 4 . . 1 2 . . . . . . 2 . Sentry 4 | . . . . . . . 1 . . . 1 2 . Programmer 5 | . . . . . . 1 1 . . . . . 3 Best Kill Streak 7 | . 2 . . 4 2 1 1 . . . 1 4 7 Combat Bots Only 7 | . 2 . . 4 2 1 1 . . . 1 2 7 Max Kills in Single Turn 3 | . 1 . . 1 1 1 1 . . . 1 2 3 Gunslinging . | . . . . . . . . . . . . . . Exploded 3 | . . . . . . . . . . . . 1 3 Melee . | . . . . . . . . . . . . . . Uniques/NPCs Destroyed . | . . . . . . . . . . . . . . Combat | -11 -10 -10 -10 -9 -8 -7 -6 -6 -6 -5 -5 -5 -4 -------- Run | Yrd Mat Min Exi Min Mat Fac Fac Low Dat Pro Fac Ext Fac Hostile Shots Fired 316 | . 19 . . 41 8 12 74 1 . 3 6 61 91 Missed 80 | . 6 . . 10 2 3 18 . . . 3 21 17 Damage Taken 3304 | . 143 . . 267 82 140 526 19 . 61 103 745 1218 Core 474 | . 35 . . 73 23 15 79 . . 22 . 61 166 Absorbed by Shields 207 | . . . . . . . . . . . 36 171 . Ignored by Resistances 175 | . . . . . . . 40 . . 6 37 92 . Core Remaining (%) 88 | 100 . . . 56 95 97 . . . 88 . 93 . Volleys Fired 126 | . 18 . . 16 9 3 22 2 . 3 5 26 22 Largest 3 | . 2 . . 2 2 2 2 2 . 2 3 3 3 Hottest 268 | . 40 . . 120 125 128 170 88 . 88 178 220 268 Shots Fired 229 | . 36 . . 31 13 4 39 4 . 6 11 44 41 Gun 95 | . 36 . . 30 9 . . . . . . . 20 Cannon 114 | . . . . . . 4 39 4 . 6 8 34 19 Launcher 16 | . . . . . 1 . . . . . 3 10 2 Special 4 | . . . . 1 3 . . . . . . . . Kinetic 124 | . 36 . . 30 4 1 31 4 . 6 5 2 5 Thermal 89 | . . . . 1 8 3 8 . . . 3 32 34 Explosive 15 | . . . . . . . . . . . 3 10 2 Electromagnetic 1 | . . . . . 1 . . . . . . . . Robot Hit Streak 14 | . 6 . . 8 4 4 14 4 . 2 5 11 7 Robot Miss Streak 5 | . 2 . . 5 5 . 5 1 . 3 4 3 3 Penetration Max 1 | . . . . . . . . . . . . . 1 Secondary Targets 2 | . . . . 2 . . . . . . . . . Max Gunslinging Chain 1 | . . . . 1 . . . . . . . . . Shots Hit Robots 138 | . 21 . . 19 6 4 24 3 . 2 5 28 26 Core Hits 70 | . 12 . . 6 5 1 4 1 . . 4 23 14 Critical Kills 2 | . . . . . . . . . . . . 2 . Critical Parts Destroyed 1 | . . . . . . . . . . . . . 1 Critical Strikes 7 | . . . . . . 1 2 . . . 1 2 1 Meltdown 2 | . . . . . . . . . . . . 2 . Blast 4 | . . . . . . 1 2 . . . 1 . . Smash 1 | . . . . . . . . . . . . . 1 Melee Attacks 26 | . . . . . 2 5 . . . . 5 . 14 Impact 26 | . . . . . 2 5 . . . . 5 . 14 Slashing . | . . . . . . . . . . . . . . Piercing . | . . . . . . . . . . . . . . Sneak Attacks . | . . . . . . . . . . . . . . Combat Hostiles . | . . . . . . . . . . . . . . Follow-up Attacks . | . . . . . . . . . . . . . . Damage Inflicted 4796 | . 238 . . 207 174 178 765 85 . 63 225 1601 1260 Guns 952 | . 238 . . 207 90 . . . . . . . 417 Cannons 2427 | . . . . . . 61 765 85 . 60 153 897 406 Explosions 1150 | . . . . . 60 . . . . . 72 704 314 Melee 240 | . . . . . . 117 . . . . . . 123 Ramming 3 | . . . . . . . . . . 3 . . . Kinetic 1400 | . 238 . . 207 20 30 535 85 . 60 120 . 105 Thermal 1987 | . . . . . 94 31 230 . . . 33 897 702 Explosive 1090 | . . . . . . . . . . . 72 704 314 Electromagnetic 60 | . . . . . 60 . . . . . . . . Impact 256 | . . . . . . 117 . . . . . . 139 Slashing . | . . . . . . . . . . . . . . Piercing . | . . . . . . . . . . . . . . Highest Corruption 1 | . . . . . . . 1 1 1 1 . 1 1 Average Corruption 1 | . . . . . . . 1 1 1 1 . 1 1 Corruption Purged . | . . . . . . . . . . . . . . Corruption Blocked . | . . . . . . . . . . . . . . Effects 3 | . . . . . . . . 2 . 1 . . . Message Errors 1 | . . . . . . . . 1 . . . . . Matter Fused 1 | . . . . . . . . 1 . . . . . Alerts 1 | . . . . . . . . . . 1 . . . Overload Shots . | . . . . . . . . . . . . . . Overflow Damage 203 | . . . . . . 7 71 . . . . 20 105 Projectiles 99 | . . . . . . . 71 . . . . 19 9 Explosions 29 | . . . . . . . . . . . . 1 28 Melee 75 | . . . . . . 7 . . . . . . 68 Knockbacks 10 | . . . . . . 2 4 . . 1 . . 3 Impact 5 | . . . . . . 2 . . . . . . 3 Kinetic 5 | . . . . . . . 4 . . 1 . . . Secondary . | . . . . . . . . . . . . . . Self-Inflicted Damage 86 | . . . . . . . . . . 1 . 60 25 Shots 3 | . . . . . . . . . . . . 2 1 Rammed 1 | . . . . . . . . . . 1 . . . Targets Rammed 1 | . . . . . . . . . . 1 . . . Kicked . | . . . . . . . . . . . . . . Crushed . | . . . . . . . . . . . . . . Highest Temperature 456 | . 12 . . 34 105 72 456 63 . 81 228 288 381 Average Temperature 116 | . 6 . . 22 32 36 179 29 . 40 99 118 128 Received Heat Transfer 367 | . 78 . . 15 9 9 108 9 . 18 . 100 21 Effects 6 | . . . . . . . 1 . . . . . 5 Shutdowns 1 | . . . . . . . 1 . . . . . . Energy Bleed 1 | . . . . . . . . . . . . . 1 Interference 3 | . . . . . . . . . . . . . 3 Matter Decay 1 | . . . . . . . . . . . . . 1 Siege Activations . | . . . . . . . . . . . . . . Robots Corrupted . | . . . . . . . . . . . . . . Combat Hostiles . | . . . . . . . . . . . . . . Parts Fried . | . . . . . . . . . . . . . . Impact Corruptions 4 | . . . . . . 2 . . . . . . 2 Robots Melted 2 | . . . . . . . . . . . . 2 . Combat Hostiles 1 | . . . . . . . . . . . . 1 . Parts Melted 8 | . . . . 1 1 . 2 . . . . 2 2 Heat Transferred 2450 | . . . . . 198 50 400 . . . 37 988 777 Parts Sabotaged . | . . . . . . . . . . . . . . Parts Stolen . | . . . . . . . . . . . . . . Parts Stripped . | . . . . . . . . . . . . . . Power Chain Reactions 1 | . . . . . 1 . . . . . . . . Alert | -11 -10 -10 -10 -9 -8 -7 -6 -6 -6 -5 -5 -5 -4 ------- Run | Yrd Mat Min Exi Min Mat Fac Fac Low Dat Pro Fac Ext Fac Peak Influence 707 | . 209 81 . 90 64 64 77 . . . 707 476 479 Initial 665 | . . 81 . . 29 11 29 . . . 665 171 222 Average 147 | . 59 81 . 23 27 19 41 . . . 523 298 188 Maximum Alert Level 3 | . 1 . . . . . . . . . 3 2 2 Low Security (%) 69 | 100 94 100 . 100 100 100 100 . . . . 25 39 Level 1 17 | . 5 . . . . . . . . . 32 46 55 Level 2 12 | . . . . . . . . . . . 63 28 4 Level 3 . | . . . . . . . . . . . 3 . . Level 4 . | . . . . . . . . . . . . . . Level 5 . | . . . . . . . . . . . . . . High Security . | . . . . . . . . . . . . . . Max Security . | . . . . . . . . . . . . . . Squads Dispatched 17 | . 3 . . 1 2 3 2 . . . 1 . 5 Investigation 7 | . 1 . . 1 2 2 . . . . . . 1 Extermination 3 | . . . . . . 1 1 . . . . . 1 Reinforcement 5 | . 2 . . . . . . . . . 1 . 2 Assault 1 | . . . . . . . . . . . . . 1 Garrison 1 | . . . . . . . 1 . . . . . . Intercept . | . . . . . . . . . . . . . . Searches Triggered 1 | . . . . . . . . . . . 1 . . Construction Impeded . | . . . . . . . . . . . . . . Haulers Reinforced 1 | . . . . . . . . . . . . . 1 Active Scanning Responses . | . . . . . . . . . . . . . . Cargo Convoy Interrupts . | . . . . . . . . . . . . . . Stealth | -11 -10 -10 -10 -9 -8 -7 -6 -6 -6 -5 -5 -5 -4 --------- Run | Yrd Mat Min Exi Min Mat Fac Fac Low Dat Pro Fac Ext Fac Distress Signals 8 | . . . . . 2 2 . . . 2 . 1 1 Communications Jammed 14 | . . . . . . . . . . . 13 1 . Distress Signals 14 | . . . . . . . . . . . 13 1 . Times Spotted 99 | . 13 . . 8 6 7 4 5 . 11 5 19 21 Peak Tracking Total 8 | . 4 . . 4 6 4 2 3 . 6 3 8 5 Tactical Retreats 14 | . 1 . . . 1 3 . 1 . 5 1 1 1 Traps | -11 -10 -10 -10 -9 -8 -7 -6 -6 -6 -5 -5 -5 -4 ------- Run | Yrd Mat Min Exi Min Mat Fac Fac Low Dat Pro Fac Ext Fac Traps Triggered 3 | . 1 . . . . . 1 . . . 1 . . Indirectly . | . . . . . . . . . . . . . . Trap Hack Attempts . | . . . . . . . . . . . . . . Triggered . | . . . . . . . . . . . . . . Disarmed . | . . . . . . . . . . . . . . Reprogrammed . | . . . . . . . . . . . . . . Reused . | . . . . . . . . . . . . . . Traps Extracted . | . . . . . . . . . . . . . . Installed . | . . . . . . . . . . . . . . Triggered 3 | . . . . . . . . . . 3 . . . Machines | -11 -10 -10 -10 -9 -8 -7 -6 -6 -6 -5 -5 -5 -4 ---------- Run | Yrd Mat Min Exi Min Mat Fac Fac Low Dat Pro Fac Ext Fac Machines Disabled 4 | . . . . . . . . . . . . 2 2 Max in Single Turn 1 | . . . . . . . . . . . . . 1 Garrison Access 2 | . . . . . . . . . . . 1 . 1 Machines Repaired . | . . . . . . . . . . . . . . Machines Dismantled . | . . . . . . . . . . . . . . Machines Sabotaged . | . . . . . . . . . . . . . . Overloaded Fab Kills . | . . . . . . . . . . . . . . Hacking | -11 -10 -10 -10 -9 -8 -7 -6 -6 -6 -5 -5 -5 -4 --------- Run | Yrd Mat Min Exi Min Mat Fac Fac Low Dat Pro Fac Ext Fac Machines Accessed 36 | . 4 . 2 1 5 6 6 . 4 . 3 3 2 Terminals 18 | . 4 . . . 3 1 5 . . . 2 3 . Fabricators 3 | . . . . . . 2 1 . . . . . . Repair Stations 1 | . . . . . . 1 . . . . . . . Recycling Units . | . . . . . . . . . . . . . . Scanalyzers 4 | . . . . . 2 1 . . . . . . 1 Garrison Access 3 | . . . . . . 1 . . . . 1 . 1 Total Hacks 106 | . 10 . 2 1 25 9 10 . 28 . 9 6 6 Successful 67 | . 6 . 2 1 18 3 3 . 28 . 4 . 2 Failed 39 | . 4 . . . 7 6 7 . . . 5 6 4 Catastrophic 7 | . . . . . 1 2 1 . . . . 2 1 Database Lockouts . | . . . . . . . . . . . . . . Manual 40 | . 9 . 1 . 14 . 8 . . . 4 4 . Terminals 47 | . 10 . . . 14 2 9 . . . 6 6 . Fabricators 4 | . . . . . . 3 1 . . . . . . Repair Stations 1 | . . . . . . 1 . . . . . . . Recycling Units . | . . . . . . . . . . . . . . Scanalyzers 14 | . . . . . 11 1 . . . . . . 2 Garrison Access 9 | . . . . . . 2 . . . . 3 . 4 Terminal Hacks 40 | . 2 . 2 1 4 1 . . 28 . 2 . . Record 12 | . . . 1 . . . . . 11 . . . . Part Schematic 8 | . . . . . . . . . 8 . . . . Robot Schematic 6 | . . . . . . . . . 6 . . . . Robot Analysis 1 | . 1 . . . . . . . . . . . . Prototype ID Bank 4 | . . . . . 1 . . . 3 . . . . Open Door 1 | . . . . 1 . . . . . . . . . Open DSF 1 | . . . . . . 1 . . . . . . . Branch Access Points 3 | . 1 . . . 1 . . . . . 1 . . Terminal Index 1 | . . . . . 1 . . . . . . . . Unreport Threat 2 | . . . . . 1 . . . . . 1 . . Derelict Proto ID Bank 1 | . . . 1 . . . . . . . . . . Fabricator Hacks 2 | . . . . . . 2 . . . . . . . Load Schematic 1 | . . . . . . 1 . . . . . . . Build 1 | . . . . . . 1 . . . . . . . Repair Station Hacks . | . . . . . . . . . . . . . . Recycling Unit Hacks . | . . . . . . . . . . . . . . Scanalyzer 13 | . . . . . 11 . . . . . . . 2 Insert Component 6 | . . . . . 5 . . . . . . . 1 Analyze 7 | . . . . . 6 . . . . . . . 1 Garrison Access Hacks 1 | . . . . . . . . . . . 1 . . Seal Access 1 | . . . . . . . . . . . 1 . . Unauthorized Hacks 11 | . 4 . . . 3 . 3 . . . 1 . . Terminals 11 | . 4 . . . 3 . 3 . . . 1 . . Botnet 11 | . 4 . . . 3 . 3 . . . 1 . . Fabricators . | . . . . . . . . . . . . . . Repair Stations . | . . . . . . . . . . . . . . Recycling Units . | . . . . . . . . . . . . . . Scanalyzers . | . . . . . . . . . . . . . . Garrison Access . | . . . . . . . . . . . . . . Data Cores Recovered . | . . . . . . . . . . . . . . Used . | . . . . . . . . . . . . . . Hacking Detections 27 | . 4 . . . 5 6 6 . . . 1 3 2 Full Trace Events 5 | . . . . . 2 2 . . . . . . 1 Feedback Events 1 | . . . . . . . . . . . . . 1 Corruption 1 | . . . . . . . . . . . . . 1 Feedback Blocked . | . . . . . . . . . . . . . . Robot Schematics Acquired 6 | . . . . . . . . . 6 . . . . Robots Built . | . . . . . . . . . . . . . . Authchips . | . . . . . . . . . . . . . . Time . | . . . . . . . . . . . . . . Total Robot Build Rating . | . . . . . . . . . . . . . . Part Schematics Acquired 14 | . . . . . 5 . . . 8 . . . 1 Parts Built 2 | . . . . . . 2 . . . . . . . Authchips . | . . . . . . . . . . . . . . Time 62 | . . . . . . 62 . . . . . . . Total Part Build Rating 4 | . . . . . . 4 . . . . . . . Parts Repaired . | . . . . . . . . . . . . . . Time . | . . . . . . . . . . . . . . Parts Recycled . | . . . . . . . . . . . . . . Recycled Matter . | . . . . . . . . . . . . . . Retrieved Matter . | . . . . . . . . . . . . . . Retrieved Components . | . . . . . . . . . . . . . . Parts Scanalyzed 6 | . . . . . 5 . . . . . . . 1 Part Schematics Acquired 6 | . . . . . 5 . . . . . . . 1 Parts Damaged . | . . . . . . . . . . . . . . Bothacking | -11 -10 -10 -10 -9 -8 -7 -6 -6 -6 -5 -5 -5 -4 ------------ Run | Yrd Mat Min Exi Min Mat Fac Fac Low Dat Pro Fac Ext Fac Used RIF Installer . | . . . . . . . . . . . . . . Robots Hacked . | . . . . . . . . . . . . . . Non-combat . | . . . . . . . . . . . . . . Combat . | . . . . . . . . . . . . . . Robot Hacks Applied . | . . . . . . . . . . . . . . Relay Couplers Released 2 | . . . . . . . . . . . . . 2 Machine Destruction 2 | . . . . . . . . . . . . . 2 Fabnet Peak Effective % . | . . . . . . . . . . . . . . Robots Rewired 4 | . . . . . . . . . . . . 4 . Allies Hacked . | . . . . . . . . . . . . . . Hacks Repelled . | . . . . . . . . . . . . . . Allies | -11 -10 -10 -10 -9 -8 -7 -6 -6 -6 -5 -5 -5 -4 -------- Run | Yrd Mat Min Exi Min Mat Fac Fac Low Dat Pro Fac Ext Fac Total Allies 8 | . . . . 3 . . . . . . . 5 . Largest Group 5 | . . . . 2 2 . . . . . . 5 1 Highest-Rated Group 280 | . . . . 45 45 . . . . . . 280 159 Highest-Rated Ally 159 | . . . . 31 31 . . . . . . 159 159 Total Orders . | . . . . . . . . . . . . . . Ally Attacks 88 | . . . . 14 8 . . . . . . 66 . Total Damage 2038 | . . . . 207 168 . . . . . . 1663 . Kills 13 | . . . . 2 1 . . . . . . 10 . Allies Corrupted . | . . . . . . . . . . . . . . Allies Melted . | . . . . . . . . . . . . . . Intel | -11 -10 -10 -10 -9 -8 -7 -6 -6 -6 -5 -5 -5 -4 ------- Run | Yrd Mat Min Exi Min Mat Fac Fac Low Dat Pro Fac Ext Fac Robot Analysis Total 1 | . 1 . . . . . . . . . . . . Derelict Logs Recovered 4 | . . 1 . 1 . . . 1 . 1 . . . Drone Launches . | . . . . . . . . . . . . . . Drone Recoveries . | . . . . . . . . . . . . . . Exploration | -11 -10 -10 -10 -9 -8 -7 -6 -6 -6 -5 -5 -5 -4 ------------- Run | Yrd Mat Min Exi Min Mat Fac Fac Low Dat Pro Fac Ext Fac Turns Passed 6834 | 3 387 84 235 1362 435 668 613 400 76 337 702 746 786 Spaces Moved 5453 | 1 236 81 223 950 350 607 547 400 83 356 578 487 554 Core . | . . . . . . . . . . . . . . Treads 105 | 1 104 . . . . . . . . . . . . Legs . | . . . . . . . . . . . . . . Wheels 5348 | . 132 81 223 950 350 607 547 400 83 356 578 487 554 Hover . | . . . . . . . . . . . . . . Flight . | . . . . . . . . . . . . . . Fastest Speed 90 | 160 105 105 105 105 90 90 90 90 92 92 92 92 92 Average Speed 97 | 160 129 105 105 105 90 90 90 91 92 92 93 97 102 Slowest Speed 160 | 160 160 105 105 105 90 90 90 92 92 92 107 107 120 Overloaded Moves . | . . . . . . . . . . . . . . Propulsion Burnouts . | . . . . . . . . . . . . . . Robots Hopped . | . . . . . . . . . . . . . . Cave-ins Triggered . | . . . . . . . . . . . . . . Exploration Rate (%) 38 | 2 49 27 65 77 25 23 20 32 74 58 17 49 17 Regions Visited 13 Branch Regions 7 Pre-discovered Areas 4 | . . . 1 1 . . . . 1 1 . . . Known Exits Taken 2 | . 1 . . . . . . . . . 1 . . Unknown Exits Taken 11 | 1 . 1 1 1 1 1 1 1 1 1 . 1 . Scrap Searched 4 | . . . . 1 . . . 3 . . . . . Spaces Dug 35 | . . . . . 2 1 . . . . 5 14 13 Terrain Destroyed 157 | . . . . . 11 1 10 1 . 3 29 75 27 Melee 17 | . . . . . 2 1 . . . . 5 . 9 Projectile 30 | . . . . . 2 . 10 1 . 3 2 4 8 AOE 110 | . . . . . 7 . . . . . 22 71 10 Terrain Rammed . | . . . . . . . . . . . . . . Walls Destroyed . | . . . . . . . . . . . . . . Machines Disabled . | . . . . . . . . . . . . . . Actions | -11 -10 -10 -10 -9 -8 -7 -6 -6 -6 -5 -5 -5 -4 --------- Run | Yrd Mat Min Exi Min Mat Fac Fac Low Dat Pro Fac Ext Fac Total 6696 | 4 287 80 224 1288 448 718 630 431 82 359 721 713 711 Wait 837 | . 8 . . 307 66 84 33 21 . . 100 123 95 Move 5440 | . 235 80 222 949 349 606 546 399 82 355 577 486 554 Hop . | . . . . . . . . . . . . . . Pick Up 47 | . 12 . 1 5 7 3 7 1 . . 6 1 4 Fast Attach 24 | . 3 . . 1 2 1 4 1 . . 4 2 6 Attach 17 | 2 . . . . 4 2 3 . . . 1 1 4 Detach 9 | 2 2 . . . 1 1 1 . . . 1 1 . Swap 35 | . 2 . . 2 3 7 5 3 . . 6 1 6 Drop 55 | . 7 . 1 8 5 6 9 4 . . 8 1 6 Fire 126 | . 18 . . 16 9 3 22 2 . 3 5 26 22 Melee 26 | . . . . . 2 5 . . . . 5 . 14 Ram 1 | . . . . . . . . . . 1 . . . Kick . | . . . . . . . . . . . . . . Crush . | . . . . . . . . . . . . . . Escape Stasis 8 | . . . . . . . . . . . 8 . . Rewire 71 | . . . . . . . . . . . . 71 . Trap . | . . . . . . . . . . . . . . Miscellaneous . | . . . . . . . . . . . . . . Route ------- -11/Scrapyard -10/Materials (discovered 4 exits: [*Mat x2] / *Min x2) -10/Mines -10/Exiles (discovered 2 exits: *Min x2) -9/Mines (discovered 2 exits: *Mat x2) -8/Materials -7/Factory -6/Factory -6/Lower Caves -6/Data Miner -5/Proximity Caves -5/Factory (discovered 4 exits: Upp x2 / *Ext x2) -5/Extension -4/Factory History --------- Turn | Location | Event 4 | -11/Scrapyard | Discovered new exit (range 0) 4 | -11/Scrapyard | Entered Materials 185 | -10/Materials | Discovered new exit (range 10) 185 | -10/Materials | Discovered new exit (range 14) 309 | -10/Materials | Build established: Mutant 354 | -10/Materials | Discovered new exit (range 14) 364 | -10/Materials | Identified exit to Mines 391 | -10/Materials | Entered Mines 444 | -10/Mines | Learned 2 Materials zone layouts 462 | -10/Mines | Found a hidden stash of uninstalled traps 470 | -10/Mines | Deemed a non-threat by the Exiles lab entrance 470 | -10/Mines | Discovered new exit (range 5) 475 | -10/Mines | Entered Exiles 489 | -10/Exiles | Discovered new exit (range 15) 502 | -10/Exiles | Met 8R-AWN 519 | -10/Exiles | Met EX-HEX 547 | -10/Exiles | Met EX-BIN 559 | -10/Exiles | Aligned with FarCom system 561 | -10/Exiles | Given EX-Vault access code 587 | -10/Exiles | Opened EX-Vault 593 | -10/Exiles | Found 0b10 Alert Chip 613 | -10/Exiles | Warned to stay clear of 0b10 Research branches 642 | -10/Exiles | Met EX-DEC 662 | -10/Exiles | Learned location of Zion (-7) 701 | -10/Exiles | Discovered new exit (range 10) 710 | -10/Exiles | Left Exiles lab with 0b10 Alert Chip 710 | -10/Exiles | Entered Mines 713 | -9/Mines | Received a Mining Laser from a helpful Derelict 826 | -9/Mines | Assembled infested the area 1537 | -9/Mines | Discovered new exit (range 12) 2015 | -9/Mines | Discovered new exit (range 11) 2027 | -9/Mines | Met a Derelict shopkeep closing up shop 2072 | -9/Mines | Entered Materials 2072 | -8/Materials | Accompanied by 2 allies 2072 | -8/Materials | Evolved 4 slots: Propulsion x2, Utility x2 2077 | -8/Materials | Led the pair of lost Derelicts to an unsafe place 2349 | -8/Materials | Build established: Skirmisher 2493 | -8/Materials | Discovered new exit (range 16) 2507 | -8/Materials | Entered Factory 2507 | -7/Factory | Evolved 2 slots: Propulsion x1, Utility x1 3089 | -7/Factory | Fabricated Arm. Wheel (x2) 3157 | -7/Factory | Discovered new exit (range 19) 3172 | -7/Factory | Build established: Assassin 3175 | -7/Factory | Entered another Factory area 3175 | -6/Factory | Evolved 2 slots: Propulsion x1, Utility x1 3668 | -6/Factory | Garrison activated, responded to threat 3714 | -6/Factory | Discovered new exit (range 5) 3784 | -6/Factory | Found Prototype Processor 3784 | -6/Factory | Identified Exp. Targeting Computer 3788 | -6/Factory | Entered Lower Caves 3804 | -6/Lower Caves | A Derelict revealed a hidden shortcut to meet someone special 3812 | -6/Lower Caves | Encountered a Warlord checkpoint 3823 | -6/Lower Caves | Learned Factory emergency access door positions 3993 | -6/Lower Caves | Build established: Mutant 4188 | -6/Lower Caves | Entered Data Miner 4188 | -6/Data Miner | Discovered new exit (range 6) 4202 | -6/Data Miner | Met Data Miner 4228 | -6/Data Miner | Learned location of Section 7 (-2) 4228 | -6/Data Miner | Acquired the access code to Warlord's prototype stash 4243 | -6/Data Miner | Received God Mode back door access code from Data Miner 4264 | -6/Data Miner | Entered Proximity Caves 4266 | -5/Proximity Caves | Spotter reported a threat 4267 | -5/Proximity Caves | Spotter reported a threat 4429 | -5/Proximity Caves | Spotted B-75 Beast 4465 | -5/Proximity Caves | Attracted the attention of an 0b10 checkpoint 4514 | -5/Proximity Caves | Spotter reported a threat 4533 | -5/Proximity Caves | Spotter reported a threat 4584 | -5/Proximity Caves | Discovered new exit (range 11) 4596 | -5/Proximity Caves | Learned location of Armory (-4) 4601 | -5/Proximity Caves | Entered Factory 4601 | -5/Factory | Evolved 2 slots: Power x1, Weapon x1 4901 | -5/Factory | Search patrols dispatched 5077 | -5/Factory | Identified exit to Upper Caves 5077 | -5/Factory | Identified exit to Extension 5303 | -5/Factory | Entered Extension 5496 | -5/Extension | Rescued A7 5679 | -5/Extension | Spotted B-75 Beast 5953 | -5/Extension | Disrupted transfer network 5962 | -5/Extension | Build established: Commander-Tank 6032 | -5/Extension | Spotted B-75 Beast 6042 | -5/Extension | Allies destroyed B-75 Beast 6042 | -5/Extension | Discovered new exit (range 3) 6049 | -5/Extension | Entered Factory 6049 | -4/Factory | Accompanied by 1 ally (A7) 6049 | -4/Factory | Evolved 2 slots: Propulsion x1, Utility x1 6452 | -4/Factory | Lost 3 parts (1p1n1u) 6568 | -4/Factory | Build established: Infiltrator-Mutant 6822 | -4/Factory | Destroyed 7 combat bots 6835 | -4/Factory | Self-destructed Last Messages --------------- 06826_ U-05 Engineer builds a Wall. 06826_ Slug penetrates P-70 Sage. 06826_ Arm. Wheel destroyed. 06826_ U-05 Engineer lays Concrete. 06827_ K-01 Serf collects debris. 06827_ U-05 Engineer builds a Wall. 06828_ Slug penetrates Wall. 06828_ Penetrated by Slug. 06829_ U-05 Engineer builds a Wall. 06829_ P-70 Sage destroyed. 06829_ Slug penetrates Wall. 06830_ K-01 Serf collects debris. 06830_ U-05 Engineer builds a Wall. 06831_ Slug penetrates Wall. 06831_ Neutrino Core destroyed. 06832_ Slug penetrates G-73 Enforcer. 06833_ K-01 Serf collects debris. 06834_ U-05 Engineer lays Concrete. 06834_ Slug penetrates Wall. 06835_ U-05 Engineer lays Concrete. Map ----- +----------------------------------------------------+ | ??????????????## """ """ ##?????????????????? | | ??????????????## ##?????????????????? | | ??????????????## """ """ ##?????????????????? | | ??????????????????"" ??? ##?????????????????? | | ??????????????????"" ???? ##?????????????????? | | ?????????????????? ???? ##?????????????????? | | ??????????????????###????#####?????????????????? | | ??????????????????###???? ?????????????????? | | ???????????????????????????????????????????????? | | ???????????????????????????????????????????????? | | ???????????????????????????????????????????????? | | ????????????????????????? ????????????????? | | ?????????????????????######+###????????????????? | | ?????????????????????##### ##????????????????? | | ????????????????????? # # ????????????????? | | ??????????????????????" + # ????????????????? | | ?????????????????????"" # # ????????????????? | | ????????????????????""" # # ????????????????? | | ???????????????????"""" !# # ????????????????? | | ??????????????????? # # ????????????????? | | ????????????????"" """" # + ????????????????? | | ???????????????""" """" # # ????????????????? | | ??????????? # """" """" # # ######???? | | ??????????? # """" """" # ###############???? | | ??????????? # *!= ; ! ! ##???? | | ??????????? # @=%= ; "" "" ##???? | | ??????????? ############gp!* " " """" ###### | | ??????????? g k """" ###### | | ??????????? h """" # | | ??????????? hg""""u= #[ ! ! """" # | | ???????????? ""R"" %+ # | | ???????????? != "" ""u #*= """ """" # | | ???????????? != t #%["""" """" # | | ???????????? == !u# """" """" # | | ???????????? # """" """" # | | ????????????? ### | | ????????????? ##+########## ############ | | ?????????????? C?## ############## | | ?????????????? ????????????????####????????## | | ???????????????????????????????????????????## | | ???????????????????????????????????????????## | | ???????????????????????????????????????????## | | ???????????????????????????????????????????## | | ???????????????????????????????????????????## | | ???????????????????????????????????????????## | | ???????????????????????????????????????????##### | | ???????????????????????????????????????????##### | | ???????????????????????????????????????????????? | | ???????????????????????????????????????????????? | | ???????????????????????????????????????????????? | +----------------------------------------------------+ Best States ------------- Heat Dissipation 57 Energy Generation 32 Energy Capacity 525 Matter Stores 300 Matter Capacity 300 Sight Range 20 Terrain Scan Density 10 Jamming Range 14 Base Temperature (-) 150 EM Shielding 2 Armor Coverage 375 Resistance: KI 20 Evasion (%) 42 Targeting Accuracy 12 Recoil Reduction 2 Offensive Hacking 10 Item Schematics ----------------- Arm. Wheel | -8/Materials | Scanalyzed Concussive RPG | -8/Materials | Scanalyzed Adv. ECM Suite | -8/Materials | Scanalyzed Hrd. Light Armor Plating | -8/Materials | Scanalyzed Imp. Shield Generator | -8/Materials | Scanalyzed Combat Drone Bay | -6/Data Miner | Free Lgt. Regenerative Plating | -6/Data Miner | Free Cld. Nuclear Pulse Thruster | -6/Data Miner | Free Prc. Energy Filter | -6/Data Miner | Free Enh. Force Rifle | -6/Data Miner | Free Centrium Wheel | -6/Data Miner | Free Adv. Cryofiber Web | -6/Data Miner | Free Phase Gun | -6/Data Miner | Free Antimatter Cannon | -4/Factory | Scanalyzed Robot Schematics ------------------ S-27 Virus | -6/Data Miner | Free Y-54 Guardian | -6/Data Miner | Free G-50 Soldier | -6/Data Miner | Free X-72 Disruptor | -6/Data Miner | Free R-10 Processor | -6/Data Miner | Free A-27 Freighter | -6/Data Miner | Free Fabricated ------------ Arm. Wheel | x2 | -7/Factory Alien Tech Used ----------------- None Achievements -------------- None Challenges ------------ None Game ------ Seed MiningShadingScrap Manual? 0 Play Time 01:28:25 Cumulative 298.1 hours Start 2024.06.09 @ 21:02:48 End 2024.06.09 @ 22:32:37 Sessions 1 Manual Loads 0 Difficulty Rogue Special Mode None Game No. 181 Rogue 137 Adventurer 44 Explorer 0 Win Type - Total 2 Types 2/0/0/0/0/0/0/0/0 Lore% 58 Gallery% 64 Achievement% 58 Wizard Run 0 Options --------- Layout 2 ASCII 0 Keyboard 1 Movement Vi Keybinds 1 Fullscreen 2 Font 24/Smallcaps Map View 50x44 Zoom Use 0% Tactical HUD 1 Map Filters NONE Filters NONE Steam 1 RUN: 73860383-e27f-4d75-9772-2062dbb7669a